bitfinex-derivatives/quotes_BTCF0:USTF0_20241109
["timestamp","ask_amount","ask_price","bid_price","bid_amount"]
[1731171627208,0.3608,76127.0,76125.0,0.07336297]
[1731171627410,0.3608,76127.0,76126.0,0.096944]
[1731171627707,0.57954447,76127.0,76126.0,0.096944]
[1731171628405,0.55851216,76127.0,76126.0,0.096944]
[1731171629510,0.59804773,76127.0,76126.0,0.096944]
[1731171630114,0.3608,76127.0,76126.0,0.096944]
[1731171630406,0.09404,76132.0,76131.0,0.06564]
[1731171630605,0.09404,76132.0,76131.0,0.13900297]
[1731171630813,0.29003317,76132.0,76131.0,0.13900297]
[1731171632204,0.19599317,76132.0,76131.0,0.13900297]
[1731171632407,0.19599317,76132.0,76131.0,0.06564]
[1731171633111,0.49983643,76132.0,76123.0,0.0061]
[1731171633308,0.07336297,76125.0,76119.0,0.0061]
[1731171633609,0.07336297,76120.0,76119.0,0.06565]
[1731171634016,0.11558549,76120.0,76119.0,0.06565]
[1731171636917,0.15558213,76120.0,76119.0,0.06565]
[1731171637124,0.11335961,76120.0,76119.0,0.06565]
[1731171638424,0.31024432,76120.0,76119.0,0.06565]
[1731171638623,0.50818723,76120.0,76119.0,0.06565]
[1731171639328,0.57293986,76120.0,76119.0,0.06565]
[1731171640524,0.35673554,76120.0,76119.0,0.13901297]
[1731171641022,0.3147851,76120.0,76119.0,0.13901297]
[1731171641220,0.2207451,76120.0,76119.0,0.13901297]
[1731171641425,0.19794291,76120.0,76119.0,0.13901297]
[1731171642223,0.19794291,76120.0,76119.0,0.06565]
[1731171642425,0.19794291,76120.0,76119.0,0.13901297]
[1731171642833,0.19794291,76120.0,76119.0,0.16528761]
[1731171651235,0.19794291,76120.0,76119.0,0.09192464]
[1731171654346,0.22034006,76120.0,76119.0,0.09192464]
[1731171654540,0.19794291,76120.0,76119.0,0.09192464]
[1731171655647,0.3608,76124.0,76123.0,0.065647]
[1731171655842,0.38329601,76124.0,76123.0,0.065647]
[1731171656147,0.42579862,76124.0,76123.0,0.065647]
[1731171658843,0.3608,76124.0,76123.0,0.065647]
[1731171660143,0.3608,76124.0,76120.0,0.065649]
[1731171660347,0.07336297,76121.0,76120.0,0.065649]
[1731171660743,0.43416297,76121.0,76120.0,0.065649]
[1731171662338,0.63109542,76121.0,76120.0,0.065649]
[1731171662535,0.67370202,76121.0,76120.0,0.065649]
[1731171663146,0.63109542,76121.0,76120.0,0.065649]
[1731171664351,0.82916575,76121.0,76120.0,0.065649]
[1731171665550,0.86056575,76121.0,76120.0,0.065649]
[1731171667552,0.88411458,76121.0,76120.0,0.065649]
[1731171667752,0.91731458,76121.0,76120.0,0.065649]
[1731171668953,0.89376575,76121.0,76106.0,0.05234137]
[1731171669145,0.89376575,76121.0,76106.0,0.11800237]
[1731171669146,0.3608,76107.0,76106.0,0.11800237]
[1731171669451,0.3608,76107.0,76106.0,0.065661]
[1731171669748,0.5589411,76107.0,76106.0,0.065661]
[1731171669953,0.5589411,76107.0,76106.0,0.11800237]
[1731171670744,0.5589411,76107.0,76106.0,0.065661]
[1731171671053,0.5589411,76107.0,76106.0,0.11800237]
[1731171671949,0.5589411,76107.0,76106.0,0.065661]
[1731171672151,0.5589411,76107.0,76106.0,0.1181583]
[1731171672452,0.5589411,76107.0,76106.0,0.065661]
[1731171679953,0.7571483,76107.0,76106.0,0.065661]
[1731171680143,0.8228083,76107.0,76106.0,0.065661]
[1731171681553,0.7571483,76107.0,76106.0,0.065661]
[1731171682657,0.8511883,76107.0,76106.0,0.065661]
[1731171686458,0.9168483,76107.0,76106.0,0.065661]
[1731171690754,0.8511883,76107.0,76106.0,0.065661]
[1731171691055,0.87463108,76107.0,76106.0,0.065661]
[1731171691256,0.87463108,76107.0,76100.0,0.103]
[1731171691455,0.065663,76104.0,76102.0,0.065664]
[1731171691657,0.02344278,76103.0,76102.0,0.065664]
[1731171691860,0.41943128,76103.0,76102.0,0.065664]
[1731171692055,0.51343128,76103.0,76102.0,0.065664]
[1731171692965,0.58679425,76103.0,76102.0,0.065664]
[1731171693568,1.33091444,76103.0,76100.0,0.103]
[1731171693761,0.3608,76101.0,76090.0,0.0061]
[1731171693958,0.3608,76091.0,76090.0,0.065675]
[1731171694258,0.67512722,76091.0,76090.0,0.065675]
[1731171695163,0.58112722,76091.0,76090.0,0.065675]
[1731171695364,0.85000969,76091.0,76090.0,0.065675]
[1731171695666,0.55780136,76091.0,76090.0,0.065675]
[1731171695862,0.84975651,76091.0,76090.0,0.065675]
[1731171696167,0.89008432,76091.0,76090.0,0.065675]
[1731171696865,0.91307063,76091.0,76090.0,0.065675]
[1731171697167,0.89008432,76091.0,76090.0,0.065675]
[1731171697553,0.91306864,76091.0,76090.0,0.065675]
[1731171697865,0.89008432,76091.0,76090.0,0.065675]
[1731171701361,0.79608432,76091.0,76090.0,0.065675]
[1731171701569,0.89008432,76091.0,76090.0,0.065675]
[1731171704271,0.79608432,76091.0,76090.0,0.065675]
[1731171704574,0.89008432,76091.0,76090.0,0.065675]
[1731171705174,0.59812917,76091.0,76090.0,0.065675]
[1731171705361,0.59812917,76091.0,76090.0,0.13903797]
[1731171705567,0.69212917,76091.0,76090.0,0.13903797]
[1731171705767,0.11054536,76091.0,76090.0,0.13903797]
[1731171706066,0.3941,76107.0,76090.0,0.13903797]
[1731171706067,0.3608,76107.0,76098.0,0.065668]
[1731171706256,0.094,76099.0,76098.0,0.13903097]
[1731171706457,0.23818126,76099.0,76098.0,0.13903097]
[1731171706673,0.33218126,76099.0,76098.0,0.13903097]
[1731171706971,0.29142638,76099.0,76098.0,0.065668]
[1731171708268,0.3669,76107.0,76098.0,0.459908]
[1731171708474,0.00197157,76110.0,76109.0,0.065659]
[1731171721676,0.26266242,76110.0,76109.0,0.065659]
[1731171725404,0.35662242,76110.0,76109.0,0.065659]
[1731171726193,0.15923157,76110.0,76109.0,0.13902197]
[1731171726393,0.15923157,76110.0,76109.0,0.065659]
[1731171727298,0.43041508,76110.0,76109.0,0.065659]
[1731171728404,0.35705211,76110.0,76109.0,0.065659]
[1731171729198,0.35705211,76110.0,76109.0,0.13902197]
[1731171730803,0.26309211,76110.0,76109.0,0.13902197]
[1731171731108,0.12803157,76110.0,76109.0,0.13902197]
[1731171731314,0.09593157,76110.0,76109.0,0.13902197]
[1731171732202,0.00197157,76110.0,76109.0,0.13902197]
[1731171737633,0.09396,76114.0,76113.0,0.065655]
[1731171737998,0.29155927,76114.0,76113.0,0.065655]
[1731171739925,0.29155927,76114.0,76113.0,0.13901797]
[1731171741945,0.19759927,76114.0,76113.0,0.13901797]
[1731171742112,0.09396,76116.0,76115.0,0.065653]
[1731171742519,0.09396,76116.0,76115.0,0.11816192]
[1731171743415,0.3608,76118.0,76117.0,0.065652]
[1731171743620,0.3608,76118.0,76117.0,0.13901497]
[1731171745417,0.12602,76120.0,76119.0,0.06565]
[1731171746111,0.0321,76120.0,76119.0,0.06565]
[1731171746719,0.0061,76125.0,76120.0,0.065649]
[1731171747019,0.45472,76126.0,76125.0,0.065645]
[1731171747324,0.45472,76126.0,76125.0,0.13900797]
[1731171747524,0.3608,76126.0,76125.0,0.13900797]
[1731171757626,0.3608,76126.0,76125.0,0.065645]
[1731171758130,0.43416297,76126.0,76125.0,0.065645]
[1731171758324,0.63213836,76126.0,76125.0,0.065645]
[1731171758631,0.55877539,76126.0,76125.0,0.065645]
[1731171759433,0.65269539,76126.0,76125.0,0.065645]
[1731171762238,0.3608,76126.0,76125.0,0.065645]
[1731171765228,0.0333,76128.0,76127.0,0.065643]
[1731171765425,0.3941,76128.0,76127.0,0.065643]
[1731171765635,0.46746297,76128.0,76127.0,0.065643]
[1731171765828,0.66385037,76128.0,76127.0,0.065643]
[1731171767428,0.68519789,76128.0,76127.0,0.065643]
[1731171768125,0.95468672,76128.0,76117.0,0.0061]
[1731171768328,0.95468672,76128.0,76117.0,0.065652]
[1731171768329,0.49981397,76118.0,76117.0,0.065652]
[1731171768637,0.065653,76115.0,76112.0,0.065655]
[1731171768937,0.07336297,76113.0,76112.0,0.065655]
[1731171769139,0.135507,76113.0,76112.0,0.065655]
[1731171769337,0.3331667,76113.0,76112.0,0.065655]
[1731171770736,0.065657,76111.0,76107.0,0.06566]
[1731171770930,0.60386279,76113.0,76101.0,0.06763606]
[1731171770931,0.43416297,76108.0,76101.0,0.06763606]
[1731171771128,0.07336297,76104.0,76101.0,0.06763606]
[1731171771324,0.12728533,76103.0,76098.0,0.065668]
[1731171771525,0.43416297,76099.0,76098.0,0.065668]
[1731171771740,0.45551049,76099.0,76098.0,0.065668]
[1731171771940,0.65160467,76099.0,76098.0,0.065668]
[1731171772647,0.82793314,76099.0,76098.0,0.065668]
[1731171773341,0.86845195,76099.0,76098.0,0.065668]
[1731171773732,0.79508898,76099.0,76098.0,0.065668]
[1731171773925,0.86845195,76099.0,76098.0,0.09194989]
[1731171775135,0.79508898,76099.0,76098.0,0.09194989]
[1731171779437,0.55847599,76099.0,76098.0,0.09194989]
[1731171780445,0.55847599,76099.0,76098.0,0.16531286]
[1731171782248,0.3608,76099.0,76098.0,0.16531286]
[1731171784837,0.3608,76099.0,76098.0,0.09194989]
[1731171785039,0.3608,76099.0,76098.0,0.16531286]
[1731171790243,0.3608,76099.0,76098.0,0.09194989]
[1731171790445,0.3608,76099.0,76098.0,0.16531286]
[1731171798342,0.38255558,76099.0,76098.0,0.20468926]
[1731171798649,0.38255558,76099.0,76098.0,0.16531286]
[1731171799065,0.90041636,76099.0,76098.0,0.02628189]
[1731171799245,0.93516054,76099.0,76098.0,0.02628189]
[1731171799445,0.9350715,76099.0,76098.0,0.02628189]
[1731171800353,0.93615561,76099.0,76098.0,0.02628189]
[1731171800649,0.88920515,76099.0,76098.0,0.02628189]
[1731171802347,0.88920515,76099.0,76098.0,0.05256378]
[1731171802948,0.86749143,76099.0,76098.0,0.05256378]
[1731171803543,1.26173143,76099.0,76098.0,0.05256378]
[1731171804245,0.86749143,76099.0,76098.0,0.05256378]
[1731171804445,0.91449919,76099.0,76098.0,0.05256378]
[1731171804641,0.94005718,76099.0,76098.0,0.05256378]
[1731171805353,0.94010493,76099.0,76098.0,0.05256378]
[1731171805555,0.85261138,76099.0,76098.0,0.05256378]
[1731171806453,0.88284679,76099.0,76098.0,0.05256378]
[1731171807454,1.27708679,76099.0,76098.0,0.05256378]
[1731171809146,0.88284679,76099.0,76098.0,0.05256378]
[1731171809865,1.24364679,76099.0,76098.0,0.05256378]
[1731171810058,1.66700382,76099.0,76098.0,0.01533115]
[1731171810361,1.74036679,76099.0,76098.0,0.01533115]
[1731171813162,1.34612679,76099.0,76098.0,0.04161304]
[1731171813356,1.74036679,76099.0,76098.0,0.04161304]
[1731171814055,1.01876679,76099.0,76098.0,0.04161304]
[1731171814258,1.74036679,76099.0,76098.0,0.04161304]
[1731171820162,1.63788679,76099.0,76098.0,0.04161304]
[1731171820356,1.74036679,76099.0,76098.0,0.04161304]
[1731171820573,1.78114107,76099.0,76098.0,0.04161304]
[1731171821470,1.84680807,76099.0,76098.0,0.04161304]
[1731171822353,1.89412957,76099.0,76098.0,0.04161304]
[1731171823859,1.89412957,76099.0,76098.0,0.01091406]
[1731171825071,1.79164957,76099.0,76098.0,0.01091406]
[1731171825257,1.49988957,76099.0,76098.0,0.01091406]
[1731171825567,1.50022905,76099.0,76098.0,0.01091406]
[1731171826369,1.89446905,76099.0,76098.0,0.01091406]
[1731171827266,1.84695621,76099.0,76098.0,0.01091406]
[1731171827457,1.92031918,76099.0,76098.0,0.01091406]
[1731171827666,1.84695621,76099.0,76098.0,0.01091406]
[1731171828463,1.89434338,76099.0,76098.0,0.01091406]
[1731171828769,1.80603379,76099.0,76098.0,0.01091406]
[1731171828967,1.84684303,76099.0,76098.0,0.01091406]
[1731171829268,1.41179379,76099.0,76098.0,0.01091406]
[1731171830573,1.52598748,76099.0,76098.0,0.01091406]
[1731171832475,1.52598748,76099.0,76098.0,0.00300867]
[1731171832666,1.57335012,76099.0,76098.0,0.00300867]
[1731171832862,1.52598748,76099.0,76098.0,0.00300867]
[1731171833776,1.52598748,76099.0,76086.0,0.00083556]
[1731171833972,0.3608,76087.0,76084.0,0.0393764]
[1731171834275,0.065679,76085.0,76083.0,0.065681]
[1731171834577,0.2231849,76084.0,76083.0,0.065681]
[1731171835677,0.26417947,76084.0,76083.0,0.065681]
[1731171836068,0.33754244,76084.0,76083.0,0.065681]
[1731171837178,0.33754244,76084.0,76083.0,0.09196808]
[1731171839274,0.40322244,76084.0,76083.0,0.09196808]
[1731171840471,0.40314635,76084.0,76083.0,0.09196808]
[1731171840776,0.36222787,76084.0,76083.0,0.09196808]
[1731171841368,0.40256763,76084.0,76083.0,0.09196808]
[1731171842573,0.26352466,76084.0,76083.0,0.09196808]
[1731171842777,0.10791968,76084.0,76083.0,0.16533105]
[1731171842968,0.10791968,76084.0,76083.0,0.09196808]
[1731171843482,0.0670524,76084.0,76083.0,0.09196808]
[1731171843875,0.14041537,76084.0,76083.0,0.09196808]
[1731171844085,0.70823151,76084.0,76083.0,0.09196808]
[1731171849984,0.70823151,76084.0,76083.0,0.02628708]
[1731171850979,0.63486854,76084.0,76083.0,0.02628708]
[1731171851184,0.70823151,76084.0,76083.0,0.02628708]
[1731171853496,0.68151887,76084.0,76083.0,0.02628708]
[1731171854195,0.70744988,76084.0,76083.0,0.02628708]
[1731171855282,0.70744988,76084.0,76083.0,0.00784858]
[1731171856691,0.78081285,76084.0,76083.0,0.00784858]
[1731171856887,0.70744988,76084.0,76083.0,0.00784858]
[1731171858283,0.46292691,76084.0,76083.0,0.00784858]
[1731171858591,0.56844691,76084.0,76083.0,0.07352958]
[1731171858886,0.26451233,76084.0,76083.0,0.07352958]
[1731171859290,0.26451233,76084.0,76083.0,0.10512958]
[1731171861581,0.22417257,76084.0,76083.0,0.10512958]
[1731171863580,0.22312534,76084.0,76083.0,0.10512958]
[1731171865787,0.22312534,76084.0,76083.0,0.17849255]
[1731171866287,0.22312534,76084.0,76083.0,0.57281255]
[1731171866594,0.3608,76087.0,76086.0,0.065678]
[1731171867283,0.42606731,76087.0,76086.0,0.065678]
[1731171868289,0.02449157,76087.0,76086.0,0.065678]
[1731171877296,0.07336297,76088.0,76087.0,0.065678]
[1731171879999,0.07336297,76088.0,76080.0,0.0109176]
[1731171880591,0.07336297,76088.0,76087.0,0.065678]
[1731171883494,0.09794161,76088.0,76087.0,0.065678]
[1731171883699,0.07336297,76088.0,76087.0,0.065678]
[1731171884500,0.09803941,76088.0,76087.0,0.065678]
[1731171887407,0.45883941,76088.0,76083.0,0.065681]
[1731171887700,0.02467644,76087.0,76083.0,0.065681]
[1731171888592,0.38547644,76087.0,76084.0,0.06568]
[1731171888792,0.02467644,76086.0,76084.0,0.06568]
[1731171888999,0.04160251,76085.0,76084.0,0.06568]
[1731171889195,0.06627895,76085.0,76084.0,0.06568]
[1731171895801,0.3608,76087.0,76086.0,0.065678]
[1731171897296,0.3608,76089.0,76088.0,0.065677]
[1731171899597,0.1123598,76092.0,76086.0,0.052572]
[1731171899794,0.1123598,76092.0,76091.0,0.065674]
[1731171899996,0.4731598,76092.0,76091.0,0.065674]
[1731171900201,0.66935536,76092.0,76091.0,0.065674]
[1731171901611,0.69423962,76092.0,76091.0,0.065674]
[1731171901817,0.33343962,76092.0,76091.0,0.065674]
[1731171902112,0.69423962,76092.0,76091.0,0.065674]
[1731171906211,0.62087665,76092.0,76091.0,0.065674]
[1731171906405,0.02488426,76092.0,76091.0,0.065674]
[1731171906609,0.47022,76099.0,76096.0,0.06567]
[1731171906914,0.25240979,76097.0,76096.0,0.06567]
[1731171907416,0.29185728,76097.0,76096.0,0.06567]
[1731171911116,0.33365653,76097.0,76096.0,0.06567]
[1731171911810,0.29420904,76097.0,76096.0,0.06567]
[1731171912012,0.26300904,76097.0,76096.0,0.06567]
[1731171912214,0.06681308,76097.0,76096.0,0.13903297]
[1731171912516,0.02501383,76097.0,76096.0,0.13903297]
[1731171913026,0.02501383,76097.0,76096.0,0.06567]
[1731171914021,0.0061,76104.0,76103.0,0.065664]
[1731171914314,0.0061,76104.0,76096.0,0.45991]
[1731171914315,0.03975574,76106.0,76105.0,0.065662]
[1731171914507,0.033,76108.0,76107.0,0.06566]
[1731171914914,0.22962582,76108.0,76107.0,0.06566]
[1731171915110,0.26974384,76108.0,76107.0,0.06566]
[1731171918023,0.26974384,76108.0,76107.0,0.56566]
[1731171919317,0.07311802,76108.0,76107.0,0.56566]
[1731171921325,0.033,76108.0,76107.0,0.56566]
[1731171921522,0.07539464,76110.0,76109.0,0.065659]
[1731171921917,0.272024,76110.0,76109.0,0.065659]
[1731171922129,0.19662936,76110.0,76109.0,0.426459]
[1731171922516,0.0061,76114.0,76109.0,0.3608]
[1731171922730,0.17865476,76115.0,76109.0,0.3608]
[1731171922731,0.00197179,76115.0,76114.0,0.065654]
[1731171923124,0.19853635,76115.0,76114.0,0.065654]
[1731171923625,0.310517,76115.0,76114.0,0.065654]
[1731171924133,0.3346846,76115.0,76114.0,0.065654]
[1731171924525,0.60419885,76115.0,76114.0,0.065654]
[1731171924926,0.60419885,76115.0,76107.0,0.5]
[1731171925133,0.3608,76109.0,76108.0,0.065659]
[1731171925425,0.3849676,76109.0,76108.0,0.065659]
[1731171925631,0.4152676,76109.0,76108.0,0.065659]
[1731171926018,0.45726622,76109.0,76107.0,0.5]
[1731171926226,0.06616622,76108.0,76107.0,0.5]
[1731171927728,0.06616622,76108.0,76107.0,0.56566]
[1731171930528,0.26420253,76108.0,76107.0,0.56566]
[1731171932227,0.31301321,76108.0,76107.0,0.56566]
[1731171932838,0.26420253,76108.0,76107.0,0.56566]
[1731171933036,0.22220391,76108.0,76107.0,0.56566]
[1731171933224,0.22220391,76108.0,76107.0,0.59193879]
[1731171933830,0.48460865,76108.0,76107.0,0.52627879]
[1731171934445,0.58448865,76108.0,76107.0,0.52627879]
[1731171940941,0.58448865,76108.0,76107.0,0.2942213]
[1731171941140,0.58448865,76108.0,76107.0,0.2852213]
[1731171941141,0.67430397,76108.0,76107.0,0.2852213]
[1731171941444,0.80250387,76108.0,76107.0,0.26020747]
[1731171941650,0.80250387,76108.0,76107.0,0.18626685]
[1731171942151,0.80250387,76108.0,76107.0,0.08110682]
[1731171944447,0.80250387,76108.0,76107.0,0.10738561]
[1731171946749,0.74766694,76108.0,76107.0,0.10738561]
[1731171948045,0.65785162,76108.0,76107.0,0.10738561]
[1731171954158,0.69851026,76108.0,76107.0,0.10738561]
[1731171956154,0.79954391,76108.0,76107.0,0.10738561]
[1731171958569,0.79954391,76108.0,76107.0,0.03453558]
[1731171960790,0.7997993,76108.0,76107.0,0.03453558]
[1731171962480,0.7997993,76108.0,76107.0,0.01242008]
[1731171963065,0.7459203,76108.0,76107.0,0.01242008]
[1731171964061,0.65785162,76108.0,76107.0,0.01242008]
[1731171964966,0.69853771,76108.0,76107.0,0.01242008]
[1731171965269,0.65785162,76108.0,76107.0,0.01242008]
[1731171965661,0.58448865,76108.0,76107.0,0.01242008]
[1731171965870,0.69846093,76108.0,76107.0,0.01242008]
[1731171966058,0.69835805,76108.0,76107.0,0.01242008]
[1731171967159,0.62499508,76108.0,76107.0,0.01242008]
[1731171967363,0.69835805,76108.0,76107.0,0.01242008]
[1731171967570,0.69803805,76108.0,76107.0,0.01242008]
[1731171967968,0.67387045,76108.0,76107.0,0.01242008]
[1731171969574,0.74307836,76108.0,76107.0,0.00478045]
[1731171969761,0.74275681,76108.0,76107.0,0.00478045]
[1731171974976,0.69611859,76108.0,76107.0,0.00478045]
[1731171977380,0.74275357,76108.0,76107.0,0.00478045]
[1731171977581,0.69611859,76108.0,76107.0,0.00478045]
[1731171978171,0.79587255,76108.0,76107.0,0.00478045]
[1731171980272,0.79587255,76108.0,76107.0,0.01635327]
[1731171980775,0.79587255,76108.0,76107.0,0.00640398]
[1731171983189,0.79307255,76108.0,76107.0,0.00640398]
[1731171986292,0.73996074,76108.0,76107.0,0.00640398]
[1731171987987,1.13412074,76108.0,76107.0,0.00640398]
[1731171988298,1.12137588,76108.0,76092.0,0.065673]
[1731171988589,0.49983497,76093.0,76092.0,0.065673]
[1731171988783,0.65914954,76093.0,76092.0,0.065673]
[1731171988985,1.05238295,76093.0,76092.0,0.065673]
[1731171989492,1.01241384,76093.0,76092.0,0.065673]
[1731171993391,0.06568,76084.0,76083.0,0.02628708]
[1731171993601,0.62006996,76084.0,76083.0,0.02628708]
[1731171993787,1.01520239,76084.0,76083.0,0.02628708]
[1731171994588,1.05451718,76084.0,76083.0,0.02628708]
[1731171994790,1.05450247,76084.0,76083.0,0.02628708]
[1731171995191,1.05449968,76084.0,76083.0,0.02628708]
[1731171995391,1.01520239,76084.0,76083.0,0.02628708]
[1731171998096,1.01520239,76084.0,76083.0,0.00891698]
[1731171998804,1.05413195,76084.0,76083.0,0.00891698]
[1731172001396,1.09334449,76084.0,76083.0,0.00891698]
[1731172001599,1.16670746,76084.0,76083.0,0.00891698]
[1731172001901,1.09334449,76084.0,76083.0,0.00891698]
[1731172002403,1.01998152,76084.0,76083.0,0.00891698]
[1731172002604,1.09334449,76084.0,76083.0,0.00891698]
[1731172004993,1.09385828,76084.0,76083.0,0.00891698]
[1731172007406,1.12410153,76084.0,76083.0,0.00891698]
[1731172008298,1.0843752,76084.0,76083.0,0.00891698]
[1731172010512,1.4451752,76084.0,76083.0,0.00891698]
[1731172011611,1.42174821,76084.0,76083.0,0.00891698]
[1731172012707,1.49511118,76084.0,76083.0,0.00891698]
[1731172012903,1.29162524,76084.0,76070.0,0.11268145]
[1731172013204,1.29162524,76084.0,76073.0,0.06569]
[1731172013205,0.3608,76074.0,76073.0,0.06569]
[1731172013405,0.46652,76074.0,76073.0,0.06569]
[1731172013720,0.49337437,76074.0,76073.0,0.06569]
[1731172015211,0.49337437,76074.0,76071.0,0.0301]
[1731172015212,0.06569,76073.0,76071.0,0.0301]
[1731172015514,0.6905077,76074.0,76071.0,0.0301]
[1731172015515,0.2239877,76072.0,76071.0,0.0301]
[1731172015712,0.40311067,76072.0,76071.0,0.0301]
[1731172015914,0.10021734,76072.0,76071.0,0.0301]
[1731172016120,0.17969026,76072.0,76071.0,0.0301]
[1731172016325,0.37732562,76072.0,76071.0,0.0301]
[1731172018224,0.90280133,76072.0,76054.0,0.03931848]
[1731172018411,0.3608,76062.0,76061.0,0.065699]
[1731172018809,0.19746173,76062.0,76061.0,0.065699]
[1731172019209,0.63116487,76062.0,76058.0,0.03931848]
[1731172019419,0.3608,76060.0,76057.0,0.065703]
[1731172019621,0.10576,76059.0,76057.0,0.065703]
[1731172019812,0.3608,76060.0,76059.0,0.065702]
[1731172020016,0.46656,76060.0,76059.0,0.065702]
[1731172020212,0.75640626,76060.0,76057.0,0.0313]
[1731172020412,0.55910152,76060.0,76058.0,0.065702]
[1731172023421,0.55910152,76060.0,76059.0,0.03938292]
[1731172023625,0.55910152,76060.0,76059.0,0.0328]
[1731172024013,0.55910152,76060.0,76059.0,0.50060297]
[1731172024014,0.19830152,76060.0,76059.0,0.50060297]
[1731172024226,0.03910416,76062.0,76060.0,0.065701]
[1731172024525,0.0061,76066.0,76065.0,0.065697]
[1731172024711,0.03959804,76066.0,76065.0,0.065697]
[1731172024917,0.19783381,76066.0,76065.0,0.065697]
[1731172025421,0.19607106,76068.0,76067.0,0.065694]
[1731172025621,0.07336297,76069.0,76067.0,0.065694]
[1731172025823,0.07336297,76069.0,76068.0,0.065694]
[1731172026131,0.29880128,76069.0,76068.0,0.065694]
[1731172026534,0.065695,76067.0,76064.0,0.0306]
[1731172026734,0.43416297,76065.0,76064.0,0.0306]
[1731172027036,0.73296425,76065.0,76057.0,0.0393669]
[1731172027220,0.73296425,76065.0,76055.0,0.065705]
[1731172027221,0.43416297,76058.0,76055.0,0.0393669]
[1731172027416,0.43416297,76058.0,76052.0,0.0393669]
[1731172027417,0.03711105,76057.0,76052.0,0.0393669]
[1731172027617,0.07336297,76054.0,76052.0,0.0393669]
[1731172027829,0.03711105,76053.0,76050.0,0.0393669]
[1731172028029,0.03711105,76053.0,76048.0,0.0393669]
[1731172028030,0.03711105,76052.0,76048.0,0.0393669]
[1731172028244,0.50752594,76050.0,76048.0,0.05248979]
[1731172028430,0.0132196,76049.0,76030.0,0.07164197]
[1731172028733,0.3608,76041.0,76039.0,0.03935515]
[1731172028918,0.47925088,76041.0,76039.0,0.03935515]
[1731172029118,0.87488182,76041.0,76039.0,0.03935559]
[1731172029327,0.80151885,76041.0,76036.0,0.03935559]
[1731172029637,0.80151885,76041.0,76033.0,0.07336297]
[1731172029638,0.76465054,76041.0,76040.0,0.04045779]
[1731172029823,0.95233312,76041.0,76029.0,0.0304]
[1731172030130,0.3608,76030.0,76029.0,0.0304]
[1731172030330,0.40997624,76030.0,76029.0,0.0304]
[1731172030531,0.80587841,76030.0,76029.0,0.0304]
[1731172030917,0.8076504,76030.0,76029.0,0.0304]
[1731172031433,0.60967074,76030.0,76029.0,0.0304]
[1731172031728,0.24887074,76030.0,76029.0,0.0304]
[1731172032335,0.20614211,76030.0,76029.0,0.0304]
[1731172032526,0.24211423,76030.0,76029.0,0.0304]
[1731172033322,0.24211423,76030.0,76029.0,0.456928]
[1731172034832,0.0061,76036.0,76029.0,0.456928]
[1731172034833,0.0061,76036.0,76035.0,0.065723]
[1731172035134,0.0061,76042.0,76041.0,0.065717]
[1731172035322,0.00197381,76046.0,76044.0,0.065714]
[1731172035525,0.00197381,76046.0,76045.0,0.063]
[1731172035719,0.00197381,76046.0,76045.0,0.45752]
[1731172035931,0.19920672,76046.0,76045.0,0.45752]
[1731172036832,0.00197381,76046.0,76045.0,0.75752]
[1731172037030,0.0061,76051.0,76050.0,0.06571]
[1731172037323,0.3608,76055.0,76045.0,0.45752]
[1731172037324,0.3608,76055.0,76054.0,0.065706]
[1731172037644,0.19712692,76054.0,76048.0,0.3608]
[1731172037826,0.19712692,76054.0,76053.0,0.065707]
[1731172038021,0.0061,76061.0,76059.0,0.065702]
[1731172038234,0.0061,76066.0,76061.0,0.0657]
[1731172038538,0.1978637,76063.0,76061.0,0.0657]
[1731172038729,0.1978637,76063.0,76062.0,0.3944]
[1731172039131,0.1978637,76065.0,76063.0,0.065698]
[1731172039338,0.3608,76081.0,76063.0,0.3944]
[1731172039339,0.0061,76070.0,76063.0,0.3944]
[1731172039638,0.3608,76093.0,76069.0,0.3608]
[1731172039823,0.3608,76093.0,76090.0,0.065675]
[1731172039824,0.4754089,76093.0,76090.0,0.065675]
[1731172041122,0.4754089,76093.0,76085.0,0.0319]
[1731172041324,0.1146089,76093.0,76092.0,0.065673]
[1731172041641,0.1146089,76093.0,76083.0,0.3608]
[1731172041829,0.1146089,76086.0,76083.0,0.3608]
[1731172042538,0.1146089,76084.0,76070.0,0.0319]
[1731172042734,0.1146089,76071.0,76070.0,0.065692]
[1731172042934,0.12282581,76071.0,76070.0,0.065692]
[1731172043635,0.00821691,76071.0,76070.0,0.065692]
[1731172044739,0.00821691,76071.0,76070.0,0.760052]
[1731172044936,0.00821691,76071.0,76070.0,0.460052]
[1731172045237,0.15737526,76071.0,76061.0,0.0302]
[1731172045430,0.1146089,76071.0,76070.0,0.065692]
[1731172045629,0.15738787,76071.0,76070.0,0.065692]
[1731172046641,0.04277897,76071.0,76070.0,0.065692]
[1731172046841,0.00821699,76071.0,76070.0,0.065692]
[1731172047741,9.9e-07,76071.0,76070.0,0.760052]
[1731172048445,9.9e-07,76071.0,76070.0,2.260052]
[1731172049350,9.9e-07,76071.0,76070.0,2.413692]
[1731172049836,9.9e-07,76071.0,76070.0,2.260052]
[1731172050044,9.9e-07,76071.0,76070.0,1.960052]
[1731172050430,9.9e-07,76071.0,76070.0,0.065692]
[1731172052339,0.03,76074.0,76073.0,0.06569]
[1731172055045,0.065694,76068.0,76060.0,0.065701]
[1731172055229,0.3608,76063.0,76061.0,0.0657]
[1731172055431,0.0305,76062.0,76061.0,0.0657]
[1731172055628,0.03871917,76062.0,76061.0,0.0657]
[1731172058133,0.03871917,76062.0,76056.0,0.065704]
[1731172058335,0.00821917,76061.0,76048.0,0.0061]
[1731172058533,0.1146089,76058.0,76048.0,0.0061]
[1731172058736,0.03881917,76057.0,76047.0,0.3608]
[1731172058933,0.00821917,76056.0,76054.0,0.065706]
[1731172059130,0.00821917,76055.0,76054.0,0.065706]
[1731172059343,0.00821917,76055.0,76049.0,0.06571]
[1731172059533,0.12282807,76054.0,76047.0,0.3608]
[1731172059736,0.00821917,76053.0,76051.0,0.065708]
[1731172059939,0.00821986,76052.0,76051.0,0.065708]
[1731172061040,0.20470642,76052.0,76051.0,0.065708]
[1731172062453,0.19648656,76052.0,76051.0,0.065708]
[1731172062639,0.20470642,76052.0,76051.0,0.065708]
[1731172062840,0.00821986,76052.0,76051.0,0.065708]
[1731172063043,0.20459898,76052.0,76051.0,0.065708]
[1731172065648,0.23747697,76052.0,76051.0,0.065708]
[1731172066645,0.20459898,76052.0,76051.0,0.065708]
[1731172066952,0.23751396,76052.0,76051.0,0.065708]
[1731172068559,0.27756965,76052.0,76051.0,0.065708]